Workbook

Sheet Data Entry
C4: Data Entry For Financial Forecast Analysis
H6: Four Year
D7: 2006 | E7: =D7+1 -> 2007 | F7: =E7+1 -> 2008 | G7: =F7+1 -> 2009 | H7: Totals
C9: Sales
C10: Sales | D10: 2,010,000 | E10: 2,060,000 | F10: 2,121,800 | G10: 2,391,800 | H10: =SUM(D10:G10) -> 8,583,600
C11: Other | D11: 0 | E11: 0 | F11: 0 | G11: 0 | H11: =SUM(D11:G11) -> 0
C12: Total Sales | D12: =SUM(D10:D11) -> 2,010,000 | E12: =SUM(E10:E11) -> 2,060,000 | F12: =SUM(F10:F11) -> 2,121,800 | G12: =SUM(G10:G11) -> 2,391,800 | H12: =SUM(H10:H11) -> 8,583,600
C14: Less Cost of Goods Sold
C15: Materials | D15: 320,000 | E15: 329,600 | F15: 339,488 | G15: 389,088 | H15: =SUM(D15:G15) -> 1,378,176
C16: Labor | D16: 500,000 | E16: 515,000 | F16: 530,450 | G16: 545,450 | H16: =SUM(D16:G16) -> 2,090,900
C17: Overhead | D17: 125,000 | E17: 128,750 | F17: 132,613 | G17: 186,363 | H17: =SUM(D17:G17) -> 572,725
C18: Other | D18: 0 | E18: 0 | F18: 0 | G18: 0 | H18: =SUM(D18:G18) -> 0
C19: Total Cost of Goods Sold | D19: =SUM(D15:D18) -> 945,000 | E19: =SUM(E15:E18) -> 973,350 | F19: =SUM(F15:F18) -> 1,002,551 | G19: =SUM(G15:G18) -> 1,120,901 | H19: =SUM(H15:H18) -> 4,041,801
C21: Gross Profit | D21: =D12-D19 -> 1,065,000 | E21: =E12-E19 -> 1,086,650 | F21: =F12-F19 -> 1,119,250 | G21: =G12-G19 -> 1,270,900 | H21: =H12-H19 -> 4,541,799
C23: Operating Expenses
C24: Salaries and wages | D24: 190,000 | E24: 190,000 | F24: 190,000 | G24: 190,000 | H24: =SUM(D24:G24) -> 760,000
C25: Employee benefits | D25: 50,000 | E25: 51,500 | F25: 53,045 | G25: 54,545 | H25: 209,090
C26: Payroll taxes | D26: 30,000 | E26: 30,900 | F26: 31,827 | G26: 32,727 | H26: 125,454
C27: Rent | D27: 5,000 | E27: 5,150 | F27: 5,305 | G27: 5,455 | H27: 20,909
C28: Utilities | D28: 3,000 | E28: 3,090 | F28: 3,183 | G28: 3,273 | H28: 12,545
C29: Repairs and maintenance | D29: 1,000 | E29: 1,030 | F29: 1,061 | G29: 1,061 | H29: 4,152
C30: Insurance | D30: 1,000 | E30: 1,030 | F30: 1,061 | G30: 1,061 | H30: 4,152
C31: Travel | D31: 2,133 | E31: 2,197 | F31: 2,263 | G31: 2,263 | H31: 8,856
C32: Telephone | D32: 11,000 | E32: 11,330 | F32: 11,670 | G32: 12,670 | H32: 46,670
C33: Postage | D33: 4,000 | E33: 4,120 | F33: 4,244 | G33: 4,244 | H33: 16,607
C34: Office supplies | D34: 6,000 | E34: 6,180 | F34: 6,365 | G34: 6,365 | H34: 24,911
C35: Advertising | D35: 1,000 | E35: 1,030 | F35: 1,061 | G35: 1,061 | H35: 4,152
C36: Marketing/promotion | D36: 3,000 | E36: 3,090 | F36: 3,183 | G36: 3,183 | H36: 12,455
C37: Professional fees | D37: 1,000 | E37: 1,030 | F37: 1,061 | G37: 1,061 | H37: 4,152
C38: Training and development | D38: 1,000 | E38: 1,030 | F38: 1,061 | G38: 1,061 | H38: 4,152
C39: Bank charges | D39: 1,000 | E39: 1,030 | F39: 1,061 | G39: 1,061 | H39: 4,152
C40: Depreciation | D40: 1,000 | E40: 1,030 | F40: 1,061 | G40: 1,061 | H40: 4,152
C41: Interest Expense | D41: 6,000 | E41: 6,000 | F41: 6,000 | G41: 6,000 | H41: 24,000
C42: Other | D42: 0 | E42: 0 | F42: 0 | G42: 0 | H42: 0
C43: Total Operating Expenses | D43: =SUM(D24:D42) -> 317,133 | E43: =SUM(E24:E42) -> 320,767 | F43: =SUM(F24:F42) -> 324,510 | G43: =SUM(G24:G42) -> 328,150 | H43: =SUM(D43:G43) -> 1,290,560
C45: Operating Income | D45: =D21-D43 -> 747,867 | E45: =E21-E43 -> 765,883 | F45: =F21-F43 -> 794,740 | G45: =G21-G43 -> 942,750 | H45: =H21-H43 -> 3,251,239
C47: Interest income (expense) | D47: 16,250 | E47: 16,738 | F47: 17,240 | G47: 18,227 | H47: =SUM(D47:G47) -> 68,454
C48: Other income (expense) | D48: 0 | E48: 0 | F48: 0 | G48: 0 | H48: =SUM(D48:G48) -> 0
C49: Total Nonoperating Income (Expense) | D49: =SUM(D47:D48) -> 16,250 | E49: =SUM(E47:E48) -> 16,738 | F49: =SUM(F47:F48) -> 17,240 | G49: =SUM(G47:G48) -> 18,227 | H49: =SUM(H47:H48) -> 68,454
C51: Income (Loss) Before Taxes | D51: =D45+D49 -> 764,117 | E51: =E45+E49 -> 782,621 | F51: =F45+F49 -> 811,979 | G51: =G45+G49 -> 960,977 | H51: =H45+H49 -> 3,319,693
C53: Income Taxes | D53: 148,563 | E53: 149,144 | F53: 152,922 | G53: 162,629 | H53: =SUM(D53:G53) -> 613,258
C55: Net Income (Loss) | D55: =D51-D53 -> 615,554 | E55: =E51-E53 -> 633,477 | F55: =F51-F53 -> 659,057 | G55: =G51-G53 -> 798,348 | H55: =H51-H53 -> 2,706,435
C57: Cumulative Net Income (Loss) | D57: =D55 -> 615,554 | E57: =E55+D57 -> 1,249,031 | F57: =F55+E57 -> 1,908,088 | G57: =G55+F57 -> 2,706,435 | H57: =H55+G57 -> 5,412,870
C60: Balance Sheet - Years 1 to 4
D63: Opening | E63: Year 1 | F63: Year 2 | G63: Year 3 | H63: Year 4
C65: ASSETS
C67: Current Assets
C68: Cash | D68: 507,604 | E68: 451,000 | F68: 464,530 | G68: 478,466 | H68: 492,820
C69: Notes Receivable | D69: 4,300 | E69: 1,200 | F69: 3,200 | G69: 3,000 | H69: 3,400
C70: Accounts receivable, net | D70: 393,928 | E70: 350,000 | F70: 360,500 | G70: 371,315 | H70: 382,454
C71: Inventory | D71: 450,204 | E71: 400,000 | F71: 412,000 | G71: 424,360 | H71: 437,091
C72: Other | D72: 11,255 | E72: 10,000 | F72: 10,300 | G72: 10,609 | H72: 10,927
C73: Total Current Assets | D73: =SUM(D68:D72) -> 1,367,291 | E73: =SUM(E68:E72) -> 1,212,200 | F73: =SUM(F68:F72) -> 1,250,530 | G73: =SUM(G68:G72) -> 1,287,750 | H73: =SUM(H68:H72) -> 1,326,692
C75: Long-Term Assets
C76: Property, plant, and equipment | D76: 2,701,221 | E76: 2,400,000 | F76: 2,472,000 | G76: 2,546,160 | H76: 2,622,545
C77: Less accumulated depreciation | D77: 450,204 | E77: 400,000 | F77: 412,000 | G77: 424,360 | H77: 437,091
C78: Net property, plant, and equipment | D78: =+D76-D77 -> 2,251,018 | E78: =+E76-E77 -> 2,000,000 | F78: =+F76-F77 -> 2,060,000 | G78: =+G76-G77 -> 2,121,800 | H78: =+H76-H77 -> 2,185,454
C79: Other long-term assets | D79: 58,765 | E79: 55,000 | F79: 55,900 | G79: 56,827 | H79: 57,782
C80: Total Long-Term Assets | D80: =SUM(D78:D79) -> 2,309,783 | E80: =SUM(E78:E79) -> 2,055,000 | F80: =SUM(F78:F79) -> 2,115,900 | G80: =SUM(G78:G79) -> 2,178,627 | H80: =SUM(H78:H79) -> 2,243,236
C82: Total Assets | D82: =D73+D80 -> 3,677,074 | E82: =E73+E80 -> 3,267,200 | F82: =F73+F80 -> 3,366,430 | G82: =G73+G80 -> 3,466,377 | H82: =H73+H80 -> 3,569,928
C84: LIABILITIES AND SHAREHOLDERS' EQUITY
C86: Current Liabilities
C87: Short-term debt | D87: 675,305 | E87: 600,000 | F87: 618,000 | G87: 636,540 | H87: 655,636
C88: Current maturities of long-term debt | D88: 112,551 | E88: 100,000 | F88: 103,000 | G88: 106,090 | H88: 109,273
C89: Accounts payable | D89: 112,551 | E89: 100,000 | F89: 103,000 | G89: 106,090 | H89: 109,273
C90: Income taxes payable | D90: 33,765 | E90: 30,000 | F90: 30,900 | G90: 31,827 | H90: 32,782
C91: Accrued liabilities | D91: 101,296 | E91: 90,000 | F91: 92,700 | G91: 95,481 | H91: 98,345
C92: Other | D92: 18,008 | E92: 16,000 | F92: 16,480 | G92: 16,974 | H92: 17,484
C93: Total Current Liabilities | D93: =SUM(D87:D92) -> 1,053,476 | E93: =SUM(E87:E92) -> 936,000 | F93: =SUM(F87:F92) -> 964,080 | G93: =SUM(G87:G92) -> 993,002 | H93: =SUM(H87:H92) -> 1,022,792
C95: Long-Term Liabilities
C96: Long-term debt less current maturities | D96: 692,156 | E96: 601,200 | F96: 624,200 | G96: 645,630 | H96: 668,308
C97: Deferred income taxes | D97: 112,551 | E97: 100,000 | F97: 103,000 | G97: 106,090 | H97: 109,273
C98: Other long-term liabilities | D98: 85,903 | E98: 79,000 | F98: 80,650 | G98: 82,350 | H98: 84,101
C99: Total Long-Term Liabilities | D99: =SUM(D96:D98) -> 890,610 | E99: =SUM(E96:E98) -> 780,200 | F99: =SUM(F96:F98) -> 807,850 | G99: =SUM(G96:G98) -> 834,070 | H99: =SUM(H96:H98) -> 861,682
C101: Total Liabilities | D101: =D93+D99 -> 1,944,086 | E101: =E93+E99 -> 1,716,200 | F101: =F93+F99 -> 1,771,930 | G101: =G93+G99 -> 1,827,072 | H101: =H93+H99 -> 1,884,474
C102: Shareholders' Equity
C103: Common stock | D103: 100,000 | E103: 100,000 | F103: 100,000 | G103: 100,000 | H103: 100,000
C104: Additional paid-in capital | D104: 1,000 | E104: 1,000 | F104: 1,000 | G104: 1,000 | H104: 1,000
C105: Retained earnings | D105: 56,275 | E105: 50,000 | F105: 51,500 | G105: 53,045 | H105: 54,636
C106: Other | D106: 1,575,712 | E106: 1,400,000 | F106: 1,442,000 | G106: 1,485,260 | H106: 1,529,818
C107: Total Shareholders' Equity | D107: =SUM(D103:D106) -> 1,732,988 | E107: =SUM(E103:E106) -> 1,551,000 | F107: =SUM(F103:F106) -> 1,594,500 | G107: =SUM(G103:G106) -> 1,639,305 | H107: =SUM(H103:H106) -> 1,685,454
C109: Total Liabilities and Shareholders' Equity | D109: =D93+D99+D107 -> 3,677,074 | E109: =E93+E99+E107 -> 3,267,200 | F109: =F93+F99+F107 -> 3,366,430 | G109: =G93+G99+G107 -> 3,466,377 | H109: =H93+H99+H107 -> 3,569,929

Sheet Financial Analysis
C4: Forecast Analysis - Income Statement
D7: ='Data Entry'!D7 -> 2006 | E7: ='Data Entry'!E7 -> 2007 | F7: ='Data Entry'!F7 -> 2008 | G7: ='Data Entry'!G7 -> 2009 | H7: =G7+1 -> 2010 | I7: =H7+1 -> 2011 | J7: =I7+1 -> 2012 | K7: =J7+1 -> 2013 | L7: Totals
C9: Sales
C10: ='Data Entry'!C10 -> Sales | D10: ='Data Entry'!D10 -> 2,010,000 | E10: ='Data Entry'!E10 -> 2,060,000 | F10: ='Data Entry'!F10 -> 2,121,800 | G10: ='Data Entry'!G10 -> 2,391,800 | H10: =FORECAST(H7,D10:G10,$D$7:$G$7) -> 2,447,700 | I10: =FORECAST($I$7,D10:H10,$D$7:$H$7) -> 2,568,420 | J10: =FORECAST($J$7,D10:I10,$D$7:$I$7) -> 2,689,140 | K10: =FORECAST($K$7,D10:J10,$D$7:$J$7) -> 2,809,860 | L10: =SUM(D10:K10) -> 19,098,720
C11: ='Data Entry'!C11 -> Other | D11: ='Data Entry'!D11 -> 0 | E11: ='Data Entry'!E11 -> 0 | F11: ='Data Entry'!F11 -> 0 | G11: ='Data Entry'!G11 -> 0 | H11: =FORECAST($H$7,D11:G11,$D$7:$G$7) -> 0 | I11: =FORECAST($I$7,D11:H11,$D$7:$H$7) -> 0 | J11: =FORECAST($J$7,D11:I11,$D$7:$I$7) -> 0 | K11: =FORECAST($K$7,D11:J11,$D$7:$J$7) -> 0 | L11: =SUM(D11:K11) -> 0
C12: Total Sales | D12: =SUM(D10:D11) -> 2,010,000 | E12: 2,060,000 | F12: 2,121,800 | G12: 2,391,800 | H12: 2,447,700 | I12: 2,568,420 | J12: 2,689,140 | K12: 2,809,860 | L12: 19,098,720
C14: Less Cost of Goods Sold
C15: ='Data Entry'!C15 -> Materials | D15: ='Data Entry'!D15 -> 320,000 | E15: ='Data Entry'!E15 -> 329,600 | F15: ='Data Entry'!F15 -> 339,488 | G15: ='Data Entry'!G15 -> 389,088 | H15: =FORECAST($H$7,D15:G15,$D$7:$G$7) -> 398,832 | I15: =FORECAST($I$7,D15:H15,$D$7:$H$7) -> 420,547 | J15: =FORECAST($J$7,D15:I15,$D$7:$I$7) -> 442,262 | K15: =FORECAST($K$7,D15:J15,$D$7:$J$7) -> 463,978 | L15: =SUM(D15:K15) -> 3,103,795
C16: ='Data Entry'!C16 -> Labor | D16: ='Data Entry'!D16 -> 500,000 | E16: ='Data Entry'!E16 -> 515,000 | F16: ='Data Entry'!F16 -> 530,450 | G16: ='Data Entry'!G16 -> 545,450 | H16: =FORECAST($H$7,D16:G16,$D$7:$G$7) -> 560,675 | I16: =FORECAST($I$7,D16:H16,$D$7:$H$7) -> 575,855 | J16: =FORECAST($J$7,D16:I16,$D$7:$I$7) -> 591,035 | K16: =FORECAST($K$7,D16:J16,$D$7:$J$7) -> 606,215 | L16: =SUM(D16:K16) -> 4,424,680
C17: ='Data Entry'!C17 -> Overhead | D17: ='Data Entry'!D17 -> 125,000 | E17: ='Data Entry'!E17 -> 128,750 | F17: ='Data Entry'!F17 -> 132,613 | G17: ='Data Entry'!G17 -> 186,363 | H17: =FORECAST($H$7,D17:G17,$D$7:$G$7) -> 190,169 | I17: =FORECAST($I$7,D17:H17,$D$7:$H$7) -> 208,964 | J17: =FORECAST($J$7,D17:I17,$D$7:$I$7) -> 227,759 | K17: =FORECAST($K$7,D17:J17,$D$7:$J$7) -> 246,554 | L17: =SUM(D17:K17) -> 1,446,170
C18: ='Data Entry'!C18 -> Other | D18: ='Data Entry'!D18 -> 0 | E18: ='Data Entry'!E18 -> 0 | F18: ='Data Entry'!F18 -> 0 | G18: ='Data Entry'!G18 -> 0 | H18: =FORECAST($H$7,D18:G18,$D$7:$G$7) -> 0 | I18: =FORECAST($I$7,D18:H18,$D$7:$H$7) -> 0 | J18: =FORECAST($J$7,D18:I18,$D$7:$I$7) -> 0 | K18: =FORECAST($K$7,D18:J18,$D$7:$J$7) -> 0 | L18: =SUM(D18:K18) -> 0
C19: Total Cost of Goods Sold | D19: =SUM(D15:D18) -> 945,000 | E19: 973,350 | F19: 1,002,551 | G19: 1,120,901 | H19: 1,149,676 | I19: 1,205,366 | J19: 1,261,056 | K19: 1,316,746 | L19: 8,974,645
C21: Gross Profit | D21: =D12-D19 -> 1,065,000 | E21: 1,086,650 | F21: 1,119,250 | G21: 1,270,900 | H21: 1,298,024 | I21: 1,363,054 | J21: 1,428,084 | K21: 1,493,114 | L21: 10,124,075
C23: Operating Expenses
C24: ='Data Entry'!C24 -> Salaries and wages | D24: ='Data Entry'!D24 -> 190,000 | E24: ='Data Entry'!E24 -> 190,000 | F24: ='Data Entry'!F24 -> 190,000 | G24: ='Data Entry'!G24 -> 190,000 | H24: =FORECAST($H$7,D24:G24,$D$7:$G$7) -> 190,000 | I24: =FORECAST($I$7,D24:H24,$D$7:$H$7) -> 190,000 | J24: =FORECAST($J$7,D24:I24,$D$7:$I$7) -> 190,000 | K24: =FORECAST($K$7,D24:J24,$D$7:$J$7) -> 190,000 | L24: =SUM(D24:K24) -> 1,520,000
C25: ='Data Entry'!C25 -> Employee benefits | D25: ='Data Entry'!D25 -> 50,000 | E25: ='Data Entry'!E25 -> 51,500 | F25: ='Data Entry'!F25 -> 53,045 | G25: ='Data Entry'!G25 -> 54,545 | H25: 56,068 | I25: 57,586 | J25: 59,104 | K25: 60,622 | L25: 442,468
C26: ='Data Entry'!C26 -> Payroll taxes | D26: ='Data Entry'!D26 -> 30,000 | E26: ='Data Entry'!E26 -> 30,900 | F26: ='Data Entry'!F26 -> 31,827 | G26: ='Data Entry'!G26 -> 32,727 | H26: 33,641 | I26: 34,551 | J26: 35,462 | K26: 36,373 | L26: 265,481
C27: ='Data Entry'!C27 -> Rent | D27: ='Data Entry'!D27 -> 5,000 | E27: ='Data Entry'!E27 -> 5,150 | F27: ='Data Entry'!F27 -> 5,305 | G27: ='Data Entry'!G27 -> 5,455 | H27: 5,607 | I27: 5,759 | J27: 5,910 | K27: 6,062 | L27: 44,247
C28: ='Data Entry'!C28 -> Utilities | D28: ='Data Entry'!D28 -> 3,000 | E28: ='Data Entry'!E28 -> 3,090 | F28: ='Data Entry'!F28 -> 3,183 | G28: ='Data Entry'!G28 -> 3,273 | H28: 3,364 | I28: 3,455 | J28: 3,546 | K28: 3,637 | L28: 26,548
C29: ='Data Entry'!C29 -> Repairs and maintenance | D29: ='Data Entry'!D29 -> 1,000 | E29: ='Data Entry'!E29 -> 1,030 | F29: ='Data Entry'!F29 -> 1,061 | G29: ='Data Entry'!G29 -> 1,061 | H29: 1,091 | I29: 1,113 | J29: 1,134 | K29: 1,155 | L29: 8,645
C30: ='Data Entry'!C30 -> Insurance | D30: ='Data Entry'!D30 -> 1,000 | E30: ='Data Entry'!E30 -> 1,030 | F30: ='Data Entry'!F30 -> 1,061 | G30: ='Data Entry'!G30 -> 1,061 | H30: 1,091 | I30: 1,113 | J30: 1,134 | K30: 1,155 | L30: 8,645
C31: ='Data Entry'!C31 -> Travel | D31: ='Data Entry'!D31 -> 2,133 | E31: ='Data Entry'!E31 -> 2,197 | F31: ='Data Entry'!F31 -> 2,263 | G31: ='Data Entry'!G31 -> 2,263 | H31: 2,328 | I31: 2,373 | J31: 2,419 | K31: 2,465 | L31: 18,441
C32: ='Data Entry'!C32 -> Telephone | D32: ='Data Entry'!D32 -> 11,000 | E32: ='Data Entry'!E32 -> 11,330 | F32: ='Data Entry'!F32 -> 11,670 | G32: ='Data Entry'!G32 -> 12,670 | H32: 13,005 | I32: 13,540 | J32: 14,075 | K32: 14,610 | L32: 101,899
C33: ='Data Entry'!C33 -> Postage | D33: ='Data Entry'!D33 -> 4,000 | E33: ='Data Entry'!E33 -> 4,120 | F33: ='Data Entry'!F33 -> 4,244 | G33: ='Data Entry'!G33 -> 4,244 | H33: 4,365 | I33: 4,451 | J33: 4,536 | K33: 4,622 | L33: 34,581
C34: ='Data Entry'!C34 -> Office supplies | D34: ='Data Entry'!D34 -> 6,000 | E34: ='Data Entry'!E34 -> 6,180 | F34: ='Data Entry'!F34 -> 6,365 | G34: ='Data Entry'!G34 -> 6,365 | H34: 6,548 | I34: 6,676 | J34: 6,804 | K34: 6,933 | L34: 51,872
C35: ='Data Entry'!C35 -> Advertising | D35: ='Data Entry'!D35 -> 1,000 | E35: ='Data Entry'!E35 -> 1,030 | F35: ='Data Entry'!F35 -> 1,061 | G35: ='Data Entry'!G35 -> 1,061 | H35: 1,091 | I35: 1,113 | J35: 1,134 | K35: 1,155 | L35: 8,645
C36: ='Data Entry'!C36 -> Marketing/promotion | D36: ='Data Entry'!D36 -> 3,000 | E36: ='Data Entry'!E36 -> 3,090 | F36: ='Data Entry'!F36 -> 3,183 | G36: ='Data Entry'!G36 -> 3,183 | H36: 3,274 | I36: 3,338 | J36: 3,402 | K36: 3,466 | L36: 25,936
C37: ='Data Entry'!C37 -> Professional fees | D37: ='Data Entry'!D37 -> 1,000 | E37: ='Data Entry'!E37 -> 1,030 | F37: ='Data Entry'!F37 -> 1,061 | G37: ='Data Entry'!G37 -> 1,061 | H37: 1,091 | I37: 1,113 | J37: 1,134 | K37: 1,155 | L37: 8,645
C38: ='Data Entry'!C38 -> Training and development | D38: ='Data Entry'!D38 -> 1,000 | E38: ='Data Entry'!E38 -> 1,030 | F38: ='Data Entry'!F38 -> 1,061 | G38: ='Data Entry'!G38 -> 1,061 | H38: 1,091 | I38: 1,113 | J38: 1,134 | K38: 1,155 | L38: 8,645
C39: ='Data Entry'!C39 -> Bank charges | D39: ='Data Entry'!D39 -> 1,000 | E39: ='Data Entry'!E39 -> 1,030 | F39: ='Data Entry'!F39 -> 1,061 | G39: ='Data Entry'!G39 -> 1,061 | H39: 1,091 | I39: 1,113 | J39: 1,134 | K39: 1,155 | L39: 8,645
C40: ='Data Entry'!C40 -> Depreciation | D40: ='Data Entry'!D40 -> 1,000 | E40: ='Data Entry'!E40 -> 1,030 | F40: ='Data Entry'!F40 -> 1,061 | G40: ='Data Entry'!G40 -> 1,061 | H40: 1,091 | I40: 1,113 | J40: 1,134 | K40: 1,155 | L40: 8,645
C41: ='Data Entry'!C41 -> Interest Expense | D41: ='Data Entry'!D41 -> 6,000 | E41: ='Data Entry'!E41 -> 6,000 | F41: ='Data Entry'!F41 -> 6,000 | G41: ='Data Entry'!G41 -> 6,000 | H41: 6,000 | I41: 6,000 | J41: 6,000 | K41: 6,000 | L41: 48,000
C42: ='Data Entry'!C42 -> Other | D42: ='Data Entry'!D42 -> 0 | E42: ='Data Entry'!E42 -> 0 | F42: ='Data Entry'!F42 -> 0 | G42: ='Data Entry'!G42 -> 0 | H42: 0 | I42: 0 | J42: 0 | K42: 0 | L42: 0
C43: Total Operating Expenses | D43: =SUM(D24:D42) -> 317,133 | E43: 320,767 | F43: 324,510 | G43: 328,150 | H43: 331,838 | I43: 335,518 | J43: 339,197 | K43: 342,877 | L43: =SUM(D43:G43) -> 1,290,560
C45: Operating Income | D45: =D21-D43 -> 747,867 | E45: 765,883 | F45: 794,740 | G45: 942,750 | H45: 966,186 | I45: 1,027,536 | J45: 1,088,887 | K45: 1,150,237 | L45: 8,833,515
C47: ='Data Entry'!C47 -> Interest income (expense) | D47: ='Data Entry'!D47 -> 16,250 | E47: ='Data Entry'!E47 -> 16,738 | F47: ='Data Entry'!F47 -> 17,240 | G47: ='Data Entry'!G47 -> 18,227 | H47: =FORECAST($H$7,D47:G47,$D$7:$G$7) -> 18,722 | I47: =FORECAST($I$7,D47:H47,$D$7:$H$7) -> 19,365 | J47: =FORECAST($J$7,D47:I47,$D$7:$I$7) -> 20,009 | K47: =FORECAST($K$7,D47:J47,$D$7:$J$7) -> 20,652 | L47: =SUM(D47:K47) -> 147,202
C48: ='Data Entry'!C48 -> Other income (expense) | D48: ='Data Entry'!D48 -> 0 | E48: ='Data Entry'!E48 -> 0 | F48: ='Data Entry'!F48 -> 0 | G48: ='Data Entry'!G48 -> 0 | H48: =FORECAST($H$7,D48:G48,$D$7:$G$7) -> 0 | I48: =FORECAST($I$7,D48:H48,$D$7:$H$7) -> 0 | J48: =FORECAST($J$7,D48:I48,$D$7:$I$7) -> 0 | K48: =FORECAST($K$7,D48:J48,$D$7:$J$7) -> 0 | L48: =SUM(D48:K48) -> 0
C49: Total Nonoperating Income (Expense) | D49: =SUM(D47:D48) -> 16,250 | E49: 16,738 | F49: 17,240 | G49: 18,227 | H49: 18,722 | I49: 19,365 | J49: 20,009 | K49: 20,652 | L49: 147,202
C51: Income (Loss) Before Taxes | D51: =D45+D49 -> 764,117 | E51: 782,621 | F51: 811,979 | G51: 960,977 | H51: 984,908 | I51: 1,046,901 | J51: 1,108,895 | K51: 1,170,889 | L51: 8,980,717
C53: ='Data Entry'!C53 -> Income Taxes | D53: ='Data Entry'!D53 -> 148,563 | E53: ='Data Entry'!E53 -> 149,144 | F53: ='Data Entry'!F53 -> 152,922 | G53: ='Data Entry'!G53 -> 162,629 | H53: =FORECAST($H$7,D53:G53,$D$7:$G$7) -> 164,809 | I53: =FORECAST($I$7,D53:H53,$D$7:$H$7) -> 169,406 | J53: =FORECAST($J$7,D53:I53,$D$7:$I$7) -> 174,004 | K53: =FORECAST($K$7,D53:J53,$D$7:$J$7) -> 178,602 | L53: =SUM(D53:K53) -> 1,300,079
C55: Net Income (Loss) | D55: =D51-D53 -> 615,554 | E55: 633,477 | F55: 659,057 | G55: 798,348 | H55: 820,099 | I55: 877,495 | J55: 934,891 | K55: 992,287 | L55: 7,680,638
C57: Cumulative Net Income (Loss) | D57: =D55 -> 615,554 | E57: =E55+D57 -> 1,249,031 | F57: =F55+E57 -> 1,908,088 | G57: =G55+F57 -> 2,706,435 | H57: =H55 -> 820,099 | I57: =I55+H57 -> 1,697,594 | J57: =J55+I57 -> 2,632,485 | K57: =K55+J57 -> 3,624,772 | L57: =L55+G57 -> 10,387,073
C60: Forecast Analysis - Balance Sheet
D63: Opening | E63: Year 1 | F63: Year 2 | G63: Year 3 | H63: Opening | I63: Year 1 | J63: Year 2 | K63: Year 3 | L63: Year 4
C65: ASSETS
C67: Current Assets
C68: ='Data Entry'!C68 -> Cash | D68: ='Data Entry'!D68 -> 507,604 | E68: ='Data Entry'!E68 -> 451,000 | F68: ='Data Entry'!F68 -> 464,530 | G68: ='Data Entry'!G68 -> 478,466 | H68: =FORECAST($H$7,D68:G68,$D$7:$G$7) -> 456,929 | I68: =FORECAST($I$7,D68:H68,$D$7:$H$7) -> 449,540 | J68: =FORECAST($J$7,D68:I68,$D$7:$I$7) -> 442,152 | K68: =FORECAST($K$7,D68:J68,$D$7:$J$7) -> 434,763 | L68: 492,820
C69: ='Data Entry'!C69 -> Notes Receivable | D69: ='Data Entry'!D69 -> 4,300 | E69: ='Data Entry'!E69 -> 1,200 | F69: ='Data Entry'!F69 -> 3,200 | G69: ='Data Entry'!G69 -> 3,000 | H69: =FORECAST($H$7,D69:G69,$D$7:$G$7) -> 2,450 | I69: =FORECAST($I$7,D69:H69,$D$7:$H$7) -> 2,260 | J69: =FORECAST($J$7,D69:I69,$D$7:$I$7) -> 2,070 | K69: =FORECAST($K$7,D69:J69,$D$7:$J$7) -> 1,880 | L69: 3,400
C70: ='Data Entry'!C70 -> Accounts receivable, net | D70: ='Data Entry'!D70 -> 393,928 | E70: ='Data Entry'!E70 -> 350,000 | F70: ='Data Entry'!F70 -> 360,500 | G70: ='Data Entry'!G70 -> 371,315 | H70: =FORECAST($H$7,D70:G70,$D$7:$G$7) -> 354,601 | I70: =FORECAST($I$7,D70:H70,$D$7:$H$7) -> 348,867 | J70: =FORECAST($J$7,D70:I70,$D$7:$I$7) -> 343,133 | K70: =FORECAST($K$7,D70:J70,$D$7:$J$7) -> 337,399 | L70: 382,454
C71: ='Data Entry'!C71 -> Inventory | D71: ='Data Entry'!D71 -> 450,204 | E71: ='Data Entry'!E71 -> 400,000 | F71: ='Data Entry'!F71 -> 412,000 | G71: ='Data Entry'!G71 -> 424,360 | H71: =FORECAST($H$7,D71:G71,$D$7:$G$7) -> 405,258 | I71: =FORECAST($I$7,D71:H71,$D$7:$H$7) -> 398,705 | J71: =FORECAST($J$7,D71:I71,$D$7:$I$7) -> 392,152 | K71: =FORECAST($K$7,D71:J71,$D$7:$J$7) -> 385,599 | L71: 437,091
C72: ='Data Entry'!C72 -> Other | D72: ='Data Entry'!D72 -> 11,255 | E72: ='Data Entry'!E72 -> 10,000 | F72: ='Data Entry'!F72 -> 10,300 | G72: ='Data Entry'!G72 -> 10,609 | H72: =FORECAST($H$7,D72:G72,$D$7:$G$7) -> 10,131 | I72: =FORECAST($I$7,D72:H72,$D$7:$H$7) -> 9,968 | J72: =FORECAST($J$7,D72:I72,$D$7:$I$7) -> 9,804 | K72: =FORECAST($K$7,D72:J72,$D$7:$J$7) -> 9,640 | L72: 10,927
C73: Total Current Assets | D73: =SUM(D68:D72) -> 1,367,291 | E73: 1,212,200 | F73: 1,250,530 | G73: 1,287,750 | H73: 1,229,369 | I73: 1,209,340 | J73: 1,189,311 | K73: 1,169,281 | L73: 1,326,692
C75: Long-Term Assets
C76: ='Data Entry'!C76 -> Property, plant, and equipment | D76: ='Data Entry'!D76 -> 2,701,221 | E76: ='Data Entry'!E76 -> 2,400,000 | F76: ='Data Entry'!F76 -> 2,472,000 | G76: ='Data Entry'!G76 -> 2,546,160 | H76: =FORECAST($H$7,D76:G76,$D$7:$G$7) -> 2,431,549 | I76: =FORECAST($I$7,D76:H76,$D$7:$H$7) -> 2,392,231 | J76: =FORECAST($J$7,D76:I76,$D$7:$I$7) -> 2,352,913 | K76: =FORECAST($K$7,D76:J76,$D$7:$J$7) -> 2,313,594 | L76: 2,622,545
C77: ='Data Entry'!C77 -> Less accumulated depreciation | D77: ='Data Entry'!D77 -> 450,204 | E77: ='Data Entry'!E77 -> 400,000 | F77: ='Data Entry'!F77 -> 412,000 | G77: ='Data Entry'!G77 -> 424,360 | H77: =FORECAST($H$7,D77:G77,$D$7:$G$7) -> 405,258 | I77: =FORECAST($I$7,D77:H77,$D$7:$H$7) -> 398,705 | J77: =FORECAST($J$7,D77:I77,$D$7:$I$7) -> 392,152 | K77: =FORECAST($K$7,D77:J77,$D$7:$J$7) -> 385,599 | L77: 437,091
C78: ='Data Entry'!C78 -> Net property, plant, and equipment | D78: ='Data Entry'!D78 -> 2,251,018 | E78: ='Data Entry'!E78 -> 2,000,000 | F78: ='Data Entry'!F78 -> 2,060,000 | G78: ='Data Entry'!G78 -> 2,121,800 | H78: =FORECAST($H$7,D78:G78,$D$7:$G$7) -> 2,026,291 | I78: =FORECAST($I$7,D78:H78,$D$7:$H$7) -> 1,993,526 | J78: =FORECAST($J$7,D78:I78,$D$7:$I$7) -> 1,960,761 | K78: =FORECAST($K$7,D78:J78,$D$7:$J$7) -> 1,927,995 | L78: =+L76-L77 -> 2,185,454
C79: ='Data Entry'!C79 -> Other long-term assets | D79: ='Data Entry'!D79 -> 58,765 | E79: ='Data Entry'!E79 -> 55,000 | F79: ='Data Entry'!F79 -> 55,900 | G79: ='Data Entry'!G79 -> 56,827 | H79: =FORECAST($H$7,D79:G79,$D$7:$G$7) -> 55,394 | I79: =FORECAST($I$7,D79:H79,$D$7:$H$7) -> 54,903 | J79: =FORECAST($J$7,D79:I79,$D$7:$I$7) -> 54,411 | K79: =FORECAST($K$7,D79:J79,$D$7:$J$7) -> 53,920 | L79: 57,782
C80: Total Long-Term Assets | D80: =SUM(D78:D79) -> 2,309,783 | E80: 2,055,000 | F80: 2,115,900 | G80: 2,178,627 | H80: 2,081,686 | I80: 2,048,429 | J80: 2,015,172 | K80: 1,981,915 | L80: 2,243,236
C82: Total Assets | D82: =D73+D80 -> 3,677,074 | E82: 3,267,200 | F82: 3,366,430 | G82: 3,466,377 | H82: 3,311,055 | I82: 3,257,769 | J82: 3,204,483 | K82: 3,151,196 | L82: 3,569,928
C84: LIABILITIES AND SHAREHOLDERS' EQUITY
C86: Current Liabilities
C87: ='Data Entry'!C87 -> Short-term debt | D87: ='Data Entry'!D87 -> 675,305 | E87: ='Data Entry'!E87 -> 600,000 | F87: ='Data Entry'!F87 -> 618,000 | G87: ='Data Entry'!G87 -> 636,540 | H87: =FORECAST($H$7,D87:G87,$D$7:$G$7) -> 607,887 | I87: =FORECAST($I$7,D87:H87,$D$7:$H$7) -> 598,058 | J87: =FORECAST($J$7,D87:I87,$D$7:$I$7) -> 588,228 | K87: =FORECAST($K$7,D87:J87,$D$7:$J$7) -> 578,399 | L87: 655,636
C88: ='Data Entry'!C88 -> Current maturities of long-term debt | D88: ='Data Entry'!D88 -> 112,551 | E88: ='Data Entry'!E88 -> 100,000 | F88: ='Data Entry'!F88 -> 103,000 | G88: ='Data Entry'!G88 -> 106,090 | H88: 101,315 | I88: 99,676 | J88: 98,038 | K88: 96,400 | L88: 109,273
C89: ='Data Entry'!C89 -> Accounts payable | D89: ='Data Entry'!D89 -> 112,551 | E89: ='Data Entry'!E89 -> 100,000 | F89: ='Data Entry'!F89 -> 103,000 | G89: ='Data Entry'!G89 -> 106,090 | H89: 101,315 | I89: 99,676 | J89: 98,038 | K89: 96,400 | L89: 109,273
C90: ='Data Entry'!C90 -> Income taxes payable | D90: ='Data Entry'!D90 -> 33,765 | E90: ='Data Entry'!E90 -> 30,000 | F90: ='Data Entry'!F90 -> 30,900 | G90: ='Data Entry'!G90 -> 31,827 | H90: 30,394 | I90: 29,903 | J90: 29,411 | K90: 28,920 | L90: 32,782
C91: ='Data Entry'!C91 -> Accrued liabilities | D91: ='Data Entry'!D91 -> 101,296 | E91: ='Data Entry'!E91 -> 90,000 | F91: ='Data Entry'!F91 -> 92,700 | G91: ='Data Entry'!G91 -> 95,481 | H91: 91,183 | I91: 89,709 | J91: 88,234 | K91: 86,760 | L91: 98,345
C92: ='Data Entry'!C92 -> Other | D92: ='Data Entry'!D92 -> 18,008 | E92: ='Data Entry'!E92 -> 16,000 | F92: ='Data Entry'!F92 -> 16,480 | G92: ='Data Entry'!G92 -> 16,974 | H92: 16,210 | I92: 15,948 | J92: 15,686 | K92: 15,424 | L92: 17,484
C93: Total Current Liabilities | D93: =SUM(D87:D92) -> 1,053,476 | E93: 936,000 | F93: 964,080 | G93: 993,002 | H93: 948,304 | I93: 932,970 | J93: 917,636 | K93: 902,302 | L93: 1,022,792
C95: Long-Term Liabilities
C96: ='Data Entry'!C96 -> Long-term debt less current maturities | D96: ='Data Entry'!D96 -> 692,156 | E96: ='Data Entry'!E96 -> 601,200 | F96: ='Data Entry'!F96 -> 624,200 | G96: ='Data Entry'!G96 -> 645,630 | H96: =FORECAST($H$7,D96:G96,$D$7:$G$7) -> 611,652 | I96: =FORECAST($I$7,D96:H96,$D$7:$H$7) -> 599,994 | J96: =FORECAST($J$7,D96:I96,$D$7:$I$7) -> 588,336 | K96: =FORECAST($K$7,D96:J96,$D$7:$J$7) -> 576,678 | L96: 668,308
C97: ='Data Entry'!C97 -> Deferred income taxes | D97: ='Data Entry'!D97 -> 112,551 | E97: ='Data Entry'!E97 -> 100,000 | F97: ='Data Entry'!F97 -> 103,000 | G97: ='Data Entry'!G97 -> 106,090 | H97: =FORECAST($H$7,D97:G97,$D$7:$G$7) -> 101,315 | I97: =FORECAST($I$7,D97:H97,$D$7:$H$7) -> 99,676 | J97: =FORECAST($J$7,D97:I97,$D$7:$I$7) -> 98,038 | K97: =FORECAST($K$7,D97:J97,$D$7:$J$7) -> 96,400 | L97: 109,273
C98: ='Data Entry'!C98 -> Other long-term liabilities | D98: ='Data Entry'!D98 -> 85,903 | E98: ='Data Entry'!E98 -> 79,000 | F98: ='Data Entry'!F98 -> 80,650 | G98: ='Data Entry'!G98 -> 82,350 | H98: =FORECAST($H$7,D98:G98,$D$7:$G$7) -> 79,724 | I98: =FORECAST($I$7,D98:H98,$D$7:$H$7) -> 78,823 | J98: =FORECAST($J$7,D98:I98,$D$7:$I$7) -> 77,922 | K98: =FORECAST($K$7,D98:J98,$D$7:$J$7) -> 77,021 | L98: 84,101
C99: Total Long-Term Liabilities | D99: =SUM(D96:D98) -> 890,610 | E99: 780,200 | F99: 807,850 | G99: 834,070 | H99: 792,690 | I99: 778,493 | J99: 764,296 | K99: 750,099 | L99: 861,682
C101: Total Liabilities | D101: =D93+D99 -> 1,944,086 | E101: 1,716,200 | F101: 1,771,930 | G101: 1,827,072 | H101: 1,740,994 | I101: 1,711,463 | J101: 1,681,932 | K101: 1,652,401 | L101: 1,884,474
C102: Shareholders' Equity
C103: ='Data Entry'!C103 -> Common stock | D103: ='Data Entry'!D103 -> 100,000 | E103: ='Data Entry'!E103 -> 100,000 | F103: ='Data Entry'!F103 -> 100,000 | G103: ='Data Entry'!G103 -> 100,000 | H103: =FORECAST($H$7,D103:G103,$D$7:$G$7) -> 100,000 | I103: =FORECAST($I$7,D103:H103,$D$7:$H$7) -> 100,000 | J103: =FORECAST($J$7,D103:I103,$D$7:$I$7) -> 100,000 | K103: =FORECAST($K$7,D103:J103,$D$7:$J$7) -> 100,000 | L103: 100,000
C104: ='Data Entry'!C104 -> Additional paid-in capital | D104: ='Data Entry'!D104 -> 1,000 | E104: ='Data Entry'!E104 -> 1,000 | F104: ='Data Entry'!F104 -> 1,000 | G104: ='Data Entry'!G104 -> 1,000 | H104: =FORECAST($H$7,D104:G104,$D$7:$G$7) -> 1,000 | I104: =FORECAST($I$7,D104:H104,$D$7:$H$7) -> 1,000 | J104: =FORECAST($J$7,D104:I104,$D$7:$I$7) -> 1,000 | K104: =FORECAST($K$7,D104:J104,$D$7:$J$7) -> 1,000 | L104: 1,000
C105: ='Data Entry'!C105 -> Retained earnings | D105: ='Data Entry'!D105 -> 56,275 | E105: ='Data Entry'!E105 -> 50,000 | F105: ='Data Entry'!F105 -> 51,500 | G105: ='Data Entry'!G105 -> 53,045 | H105: =FORECAST($H$7,D105:G105,$D$7:$G$7) -> 50,657 | I105: =FORECAST($I$7,D105:H105,$D$7:$H$7) -> 49,838 | J105: =FORECAST($J$7,D105:I105,$D$7:$I$7) -> 49,019 | K105: =FORECAST($K$7,D105:J105,$D$7:$J$7) -> 48,200 | L105: 54,636
C106: ='Data Entry'!C106 -> Other | D106: ='Data Entry'!D106 -> 1,575,712 | E106: ='Data Entry'!E106 -> 1,400,000 | F106: ='Data Entry'!F106 -> 1,442,000 | G106: ='Data Entry'!G106 -> 1,485,260 | H106: =FORECAST($H$7,D106:G106,$D$7:$G$7) -> 1,418,404 | I106: =FORECAST($I$7,D106:H106,$D$7:$H$7) -> 1,395,468 | J106: =FORECAST($J$7,D106:I106,$D$7:$I$7) -> 1,372,532 | K106: =FORECAST($K$7,D106:J106,$D$7:$J$7) -> 1,349,597 | L106: 1,529,818
C107: Total Shareholders' Equity | D107: =SUM(D103:D106) -> 1,732,988 | E107: 1,551,000 | F107: 1,594,500 | G107: 1,639,305 | H107: 1,570,061 | I107: 1,546,306 | J107: 1,522,551 | K107: 1,498,797 | L107: 1,685,454
C109: Total Liabilities and Shareholders' Equity | D109: =D93+D99+D107 -> 3,677,074 | E109: 3,267,200 | F109: 3,366,430 | G109: 3,466,377 | H109: 3,311,055 | I109: 3,257,769 | J109: 3,204,483 | K109: 3,151,197 | L109: 3,569,929
